bitfinex/quotes_ETHUSD_20250214
["timestamp","ask_amount","ask_price","bid_price","bid_amount"]
[1739515483641,0.7897,2698.7,2698.4,0.10414513]
[1739515485678,0.7897,2698.7,2698.4,3.80999513]
[1739515486942,0.7897,2698.7,2698.5,3.70568]
[1739515487145,0.7897,2698.7,2698.6,0.10401801]
[1739515488644,0.8304,2699.0,2698.6,3.80963801]
[1739515491179,4.53551,2699.0,2698.6,0.10401801]
[1739515491525,5.17154455,2699.0,2698.4,4.5262]
[1739515491894,4.53551,2699.0,2698.7,0.10410813]
[1739515492025,4.53551,2699.0,2698.4,8.23202]
[1739515492228,4.53551,2699.0,2698.5,3.80994109]
[1739515494476,4.53551,2699.0,2698.5,7.51568109]
[1739515494770,0.8304,2699.0,2698.6,3.7056]
[1739515495345,0.8304,2699.0,2698.7,3.80961348]
[1739515496266,0.8304,2699.0,2698.7,0.10419348]
[1739515496867,0.8304,2699.0,2698.7,3.80966348]
[1739515497370,5.32,2699.1,2698.8,3.70522]
[1739515497870,5.32,2699.1,2698.9,0.10406638]
[1739515498834,9.02502,2699.1,2698.6,3.70557]
[1739515499033,9.02502,2699.1,2699.0,0.10400284]
[1739515499269,10.407034,2699.1,2698.6,3.70557]
[1739515499474,9.02502,2699.1,2699.0,0.10400284]
[1739515499794,9.02502,2699.1,2698.6,3.70557]
[1739515500088,3.70502,2699.1,2699.0,0.10400284]
[1739515500304,0.7971,2699.5,2699.4,3.70452]
[1739515500580,0.7971,2699.5,2699.1,0.8184]
[1739515500763,0.7971,2699.5,2699.4,0.10367473]
[1739515500964,0.7971,2699.5,2699.2,3.70469]
[1739515501164,0.7971,2699.5,2699.4,0.10367473]
[1739515501383,0.7971,2699.5,2699.2,3.70469]
[1739515501539,0.7971,2699.5,2699.4,0.10367473]
[1739515501739,0.7971,2699.5,2699.2,7.40939]
[1739515501959,0.7971,2699.5,2699.4,0.10367473]
[1739515502187,0.7971,2699.5,2699.3,3.80833825]
[1739515502384,0.7971,2699.5,2699.4,0.10367473]
[1739515502585,6.1056,2699.7,2699.4,3.80819473]
[1739515503187,6.1056,2699.7,2699.5,3.70435]
[1739515503489,5.32,2699.7,2699.5,3.70428]
[1739515503793,5.32,2699.7,2699.6,0.1035477]
[1739515505188,5.32,2699.7,2699.6,3.8077977]
[1739515505876,0.7759,2699.9,2699.6,3.8077977]
[1739515506069,0.7759,2699.9,2699.7,3.70407]
[1739515506454,0.7759,2699.9,2699.8,0.10342069]
[1739515506871,5.32,2700.0,2699.8,3.70397]
[1739515507091,5.32,2700.0,2699.8,3.80739069]
[1739515507458,5.32,2700.0,2699.8,4.18812976]
[1739515507663,5.32,2700.0,2699.8,1.27015976]
[1739515507880,5.32,2700.0,2699.8,0.10342069]
[1739515508280,5.32,2700.0,2699.6,0.786]
[1739515508777,5.32,2700.0,2699.7,0.1026591]
[1739515509508,0.7985,2699.9,2699.7,0.1026591]
[1739515509851,0.7985,2699.9,2699.4,3.70443]
[1739515510056,0.7985,2699.9,2699.8,0.10248751]
[1739515510285,0.7985,2699.9,2699.4,3.70443]
[1739515510787,0.7985,2699.9,2699.5,0.10267803]
[1739515511859,0.7985,2699.9,2699.6,7.40831]
[1739515512058,0.7985,2699.9,2699.7,0.7510988]
[1739515512293,0.7985,2699.9,2699.7,0.10255101]
[1739515512678,4.50245,2699.9,2699.7,0.10255101]
[1739515512972,3.70397,2699.8,2699.2,4.4911]
[1739515513173,3.70397,2699.8,2699.3,0.10287333]
[1739515513408,3.70397,2699.8,2699.2,4.4911]
[1739515513576,3.70397,2699.8,2699.4,0.10280412]
[1739515513781,3.70397,2699.8,2699.2,5.310714]
[1739515513966,3.70397,2699.8,2699.3,0.10286765]
[1739515514166,3.70397,2699.8,2699.2,4.4911]
[1739515514367,3.70397,2699.8,2699.3,0.10286765]
[1739515514679,4.50245,2699.9,2699.2,4.4911]
[1739515514877,8.20638,2699.9,2699.4,0.10280412]
[1739515515073,9.614018,2699.9,2699.3,3.80747765]
[1739515515278,3.70399,2699.8,2699.5,0.10276905]
[1739515515508,5.910068,2699.9,2699.4,0.10283257]
[1739515515720,5.910068,2699.9,2699.6,0.10270554]
[1739515515926,9.614018,2699.9,2699.5,0.10276905]
[1739515516063,9.614018,2699.9,2699.7,0.10267047]
[1739515516258,3.70398,2699.8,2699.6,0.10273398]
[1739515516568,3.70398,2699.8,2699.7,0.10269323]
[1739515516799,3.70398,2699.8,2699.3,3.70465]
[1739515517009,3.70398,2699.8,2699.7,0.10269323]
[1739515517218,4.50243,2699.9,2699.2,4.49118]
[1739515517370,3.70419,2699.7,2699.2,5.310797]
[1739515518823,7.40839,2699.7,2699.2,5.310797]
[1739515519320,0.823,2699.5,2698.7,0.8245]
[1739515519466,4.52795,2699.1,2698.6,3.70548]
[1739515519664,0.823,2699.1,2698.6,3.70548]
[1739515520317,3.70517,2699.0,2698.4,3.70581]
[1739515520471,3.70517,2699.0,2698.4,4.529451]
[1739515520672,3.70521,2698.9,2698.4,4.529451]
[1739515520973,3.70517,2699.0,2698.4,4.529451]
[1739515521296,3.70525,2698.9,2698.4,0.823641]
[1739515521500,4.52059,2698.8,2698.1,0.936]
[1739515521717,3.70563,2698.6,2698.1,0.936]
[1739515521919,0.8073,2698.5,2698.1,0.936]
[1739515522572,4.51312,2698.5,2698.1,0.936]
[1739515523412,0.8073,2698.5,2698.1,0.936]
[1739515524576,0.55,2698.4,2698.1,0.936]
[1739515524810,4.25617,2698.2,2698.1,0.936]
[1739515525885,0.55,2698.2,2698.1,0.936]
[1739515526043,4.25617,2698.2,2698.1,0.936]
[1739515526231,0.55,2698.2,2698.1,0.936]
[1739515527214,4.25617,2698.2,2698.1,0.936]
[1739515527414,5.129932,2698.2,2698.1,0.936]
[1739515527597,1.423762,2698.2,2698.1,0.936]
[1739515528755,5.129932,2698.2,2698.1,0.936]
[1739515529612,1.423762,2698.2,2698.1,0.936]
[1739515530593,5.129932,2698.2,2698.1,0.936]
[1739515531743,5.129932,2698.2,2698.1,1.04009117]
[1739515534247,5.954632,2698.2,2698.1,1.04009117]
[1739515535734,2.248462,2698.2,2698.1,1.04009117]
[1739515540065,0.8172,2698.2,2698.1,1.04009117]
[1739515540361,0.7674,2698.5,2698.1,1.04009117]
[1739515540505,3.97064,2698.6,2698.2,0.8109]
[1739515540705,0.265,2698.6,2698.2,0.8109]
[1739515540906,0.265,2698.6,2698.3,0.10560941]
[1739515541344,0.265,2698.6,2698.2,0.8109]
[1739515541546,0.265,2698.6,2698.4,0.10554584]
[1739515541747,0.793795,2698.6,2698.3,0.10560941]
[1739515541960,0.815,2698.6,2698.5,0.10548228]
[1739515542160,0.815,2698.6,2698.4,0.10554584]
[1739515542302,4.5207,2698.6,2698.5,0.10548228]
[1739515542765,4.5207,2698.6,2698.2,0.8109]
[1739515543067,0.815,2698.6,2698.2,0.8109]
[1739515543362,3.70576,2698.5,2698.3,0.10560941]
[1739515543661,3.70576,2698.5,2698.1,0.936]
[1739515543806,3.70576,2698.5,2698.4,0.10554584]
[1739515544008,3.70576,2698.5,2698.1,0.936]
[1739515544243,3.70576,2698.5,2698.2,0.10567299]
[1739515544930,0.815,2698.6,2698.2,3.81181299]
[1739515545123,0.815,2698.6,2698.2,4.73432429]
[1739515545513,0.815,2698.6,2698.2,0.10567299]
[1739515545975,3.70576,2698.5,2698.2,0.10567299]
[1739515547773,0.815,2698.6,2698.2,0.10567299]
[1739515548523,4.52063,2698.6,2698.2,0.10567299]
[1739515549556,3.70584,2698.5,2698.2,0.10567299]
[1739515551517,7.41169,2698.5,2698.2,0.10567299]
[1739515551971,4.52071,2698.6,2698.2,0.10567299]
[1739515552531,0.7674,2698.7,2698.2,0.10567299]
[1739515552872,0.265,2698.6,2698.2,4.36364829]
[1739515553223,0.265,2698.6,2698.2,0.65755829]
[1739515553428,0.265,2698.6,2698.3,0.7734]
[1739515553628,0.265,2698.6,2698.4,0.10535217]
[1739515557628,4.46877,2699.1,2698.5,0.7949]
[1739515557981,4.46877,2699.1,2698.6,3.81058708]
[1739515557982,0.265,2699.0,2698.6,3.81058708]
[1739515559164,4.51978,2699.3,2698.6,0.10503708]
[1739515559478,4.51978,2699.3,2698.7,0.7914]
[1739515559479,3.7049,2699.2,2698.7,0.7914]
[1739515559826,3.7049,2699.2,2698.8,0.1048815]
[1739515560026,4.78478,2699.3,2698.7,4.49687]
[1739515560277,4.78478,2699.3,2698.8,0.1048815]
[1739515560490,0.265,2699.3,2698.9,3.70514]
[1739515560628,3.70446,2699.5,2699.0,0.8153]
[1739515560830,3.70446,2699.5,2699.1,0.10452005]
[1739515560831,0.265,2699.5,2699.1,0.10452005]
[1739515561183,0.265,2699.5,2699.1,3.80944005]
[1739515562141,0.265,2699.5,2699.3,0.7829]
[1739515562542,0.265,2699.5,2699.4,0.10394799]
[1739515567057,0.265,2699.5,2699.4,3.80846799]
[1739515567259,3.70387,2699.9,2699.4,0.56308479]
[1739515567680,0.265,2700.0,2699.4,4.26757479]
[1739515567912,3.96873,2700.0,2699.4,4.26757479]
[1739515568830,3.96873,2700.0,2699.4,0.56308479]
[1739515569382,3.70385,2699.9,2699.4,4.26759479]
[1739515569581,0.265,2700.0,2699.5,0.87550448]
[1739515569923,3.9687,2700.0,2699.6,0.10355916]
[1739515570330,3.70384,2699.9,2699.6,0.10355916]
[1739515573928,3.70411,2699.7,2699.6,0.10355916]
[1739515574418,3.70411,2699.7,2699.3,0.7829]
[1739515574625,3.70411,2699.7,2699.3,1.231662]
[1739515574794,3.70411,2699.7,2699.4,0.10368619]
[1739515578129,7.40831,2699.7,2699.4,0.10368619]
[1739515578330,5.32,2699.9,2699.4,0.10368619]
[1739515578536,4.52733,2699.6,2699.4,0.10368619]
[1739515579040,4.52733,2699.6,2699.5,0.10310474]
[1739515579191,4.52733,2699.6,2699.1,4.46101]
[1739515579542,4.52733,2699.6,2699.2,0.10329531]
[1739515579895,0.823,2699.6,2699.2,0.10329531]
[1739515580235,3.70451,2699.5,2699.2,0.10329531]
[1739515580596,0.823,2699.6,2699.2,0.10329531]
[1739515582225,3.70418,2699.7,2699.2,0.10329531]
[1739515582542,3.70405,2699.8,2699.3,4.46334]
[1739515582843,0.265,2699.8,2699.4,0.10312843]
[1739515584841,0.265,2699.8,2699.4,4.26427527]
[1739515585017,0.265,2699.8,2699.5,3.70435]
[1739515585212,0.265,2699.8,2699.6,0.10295018]
[1739515585832,5.32,2699.9,2699.6,0.86635018]
[1739515586958,3.70406,2699.8,2699.6,0.10295018]
[1739515587240,3.70406,2699.8,2699.4,0.7645]
[1739515587459,5.32,2699.9,2699.5,0.10301369]
[1739515588156,3.70405,2699.8,2699.5,0.10301369]
[1739515589724,5.32,2699.9,2699.5,0.10301369]
[1739515590048,9.02397,2699.9,2699.5,0.10301369]
[1739515590202,3.70405,2699.8,2699.5,0.10301369]
[1739515590401,3.70405,2699.8,2699.2,0.8263]
[1739515590402,0.7997,2699.7,2699.2,0.8263]
[1739515590706,0.7997,2699.7,2699.3,0.1031009]
[1739515591031,6.1197,2699.9,2699.3,3.70457]
[1739515591229,6.1197,2699.9,2699.4,3.80757583]
[1739515591621,9.82355,2699.9,2699.4,0.10306583]
[1739515591865,9.82355,2699.9,2699.4,3.80755583]
[1739515592350,9.82355,2699.9,2699.4,4.27094141]
[1739515593548,9.82355,2699.9,2699.4,0.10306583]
[1739515593549,3.70411,2699.7,2699.4,0.10306583]
[1739515593751,7.40831,2699.7,2699.4,0.10306583]
[1739515594051,3.70411,2699.7,2699.2,0.8263]
[1739515594349,9.8236,2699.9,2699.3,0.10312935]
[1739515594557,3.70405,2699.8,2699.3,0.10312935]
[1739515595048,3.70405,2699.8,2699.4,0.10306583]
[1739515595254,9.8236,2699.9,2699.4,0.10306583]
[1739515595438,9.0239,2699.9,2699.5,0.7598]
[1739515595638,9.0239,2699.9,2699.6,0.1029388]
[1739515596248,5.32,2699.9,2699.6,0.1029388]
[1739515596444,5.32,2699.9,2699.6,0.55965668]
[1739515598566,5.32,2699.9,2699.6,4.26387668]
[1739515599142,5.32,2699.9,2699.7,0.7906]
[1739515599453,9.02344,2700.2,2699.8,0.10275489]
[1739515599658,9.02344,2700.2,2699.7,0.7906]
[1739515599959,5.32,2700.2,2699.8,7.51056489]
[1739515600141,5.32,2700.2,2699.8,3.80661489]
[1739515600346,5.32,2700.2,2699.9,3.70372]
[1739515600514,5.32,2700.2,2700.0,0.7906]
[1739515600715,5.32,2700.2,2700.0,0.89316532]
[1739515601760,5.32,2700.2,2700.0,0.10256532]
[1739515602966,9.02347,2700.2,2700.0,0.10256532]
[1739515603464,5.32,2700.2,2700.0,0.10256532]
[1739515603836,12.99146,2700.4,2700.0,0.10256532]
[1739515604037,3.70332,2700.3,2700.0,0.10256532]
[1739515604234,5.585,2700.4,2700.0,0.10256532]
[1739515604427,3.70354,2700.2,2700.0,0.10256532]
[1739515604627,3.70354,2700.2,2699.7,1.26355379]
[1739515604828,3.70354,2700.2,2699.8,0.5992649]
[1739515610574,7.40708,2700.2,2699.8,0.5992649]
[1739515610781,0.8215,2700.1,2699.8,0.10248752]
[1739515611150,0.8215,2700.1,2699.7,1.26355379]
[1739515611151,0.8215,2700.1,2699.7,4.96755379]
[1739515611356,0.8215,2700.1,2699.9,0.10242403]
[1739515611549,3.70337,2700.3,2699.8,0.10248752]
[1739515611756,4.52487,2700.3,2700.0,0.10236053]
[1739515611953,4.52487,2700.3,2699.9,0.10242403]
[1739515612191,3.70353,2700.2,2700.1,0.10229704]
[1739515612339,3.70353,2700.2,2700.0,0.10202493]
[1739515612546,3.70353,2700.2,2700.1,0.10196144]
[1739515612891,4.52487,2700.3,2699.7,4.96766379]
[1739515613191,3.70352,2700.2,2700.1,0.10196144]
[1739515613377,3.70352,2700.2,2699.7,4.47251]
[1739515613576,3.70352,2700.2,2700.1,0.10196144]
[1739515613794,3.70352,2700.2,2699.7,4.47251]
[1739515614093,3.70352,2700.2,2699.7,5.36407456]
[1739515614301,3.70352,2700.2,2699.8,0.10215192]
[1739515614797,3.70352,2700.2,2699.7,5.36407456]
[1739515614969,3.70352,2700.2,2699.9,0.10208842]
[1739515615170,3.70352,2700.2,2699.8,0.10215192]
[1739515615372,3.70352,2700.2,2700.0,0.10202493]
[1739515615579,3.70352,2700.2,2699.7,5.36407456]
[1739515615580,3.70352,2700.2,2699.9,0.10208842]
[1739515615777,3.70352,2700.2,2700.1,0.10196144]
[1739515616333,3.70352,2700.2,2699.7,5.36407456]
[1739515616499,3.70352,2700.2,2700.1,0.10196144]
[1739515616794,3.70352,2700.2,2699.7,4.47251]
[1739515616990,3.70352,2700.2,2700.1,0.10196144]
[1739515617163,3.70378,2700.0,2699.4,7.52444]
[1739515617364,3.70351,2700.2,2699.5,3.70427]
[1739515617614,3.70351,2700.2,2699.6,2.36294514]
[1739515617921,3.70351,2700.2,2699.7,0.10221542]
[1739515618052,3.70356,2700.1,2699.7,0.10221542]
[1739515619153,3.70372,2700.0,2699.7,0.10221542]
[1739515619554,3.70351,2700.2,2699.7,0.10221542]
[1739515619782,3.70351,2700.2,2699.7,3.80629542]
[1739515619954,3.70351,2700.2,2699.7,4.63935196]
[1739515621652,4.5248,2700.3,2699.8,3.70396]
[1739515621988,4.5248,2700.3,2699.9,0.09844647]
[1739515623111,4.52483,2700.3,2699.9,0.91784647]
[1739515623420,0.8215,2700.3,2699.9,0.91784647]
[1739515624124,4.52479,2700.3,2699.9,0.91784647]
[1739515624727,0.8215,2700.3,2699.9,0.91784647]
[1739515624934,3.70343,2700.2,2699.9,0.91784647]
[1739515627046,0.8215,2700.3,2699.9,0.91784647]
[1739515627647,4.5248,2700.3,2699.9,0.91784647]
[1739515629065,0.8215,2700.3,2699.9,0.91784647]
[1739515629274,3.70343,2700.2,2699.9,0.91784647]
[1739515632272,4.52486,2700.3,2699.9,0.91784647]
[1739515633022,3.70336,2700.3,2699.9,0.91784647]
[1739515634181,3.70319,2700.4,2699.9,4.62167647]
[1739515634469,3.70316,2700.4,2699.9,5.08386212]
[1739515635173,9.02306,2700.5,2699.9,5.08386212]
[1739515635352,3.70306,2700.5,2699.9,5.08386212]
[1739515635518,7.40617,2700.5,2700.0,0.50838621]
[1739515635962,7.40617,2700.5,2700.1,0.09825124]
[1739515636481,3.70306,2700.5,2700.1,0.09825124]
[1739515641124,0.265,2700.6,2700.2,0.8182]
[1739515641337,3.7031,2700.5,2700.2,0.8182]
[1739515641640,3.7031,2700.5,2700.3,0.09812427]
[1739515642138,7.4062,2700.5,2700.3,0.09812427]
[1739515642568,3.70315,2700.4,2700.3,0.09812427]
[1739515643264,1.583325,2700.4,2699.8,0.8182]
[1739515643562,3.70334,2700.3,2699.9,0.0982588]
[1739515644131,3.7031,2700.5,2699.9,3.8020288]
[1739515644326,3.70315,2700.4,2700.0,0.8296]
[1739515644725,3.70315,2700.4,2700.1,0.09817731]
[1739515645466,3.70305,2700.5,2700.1,0.09817731]
[1739515645769,3.70305,2700.5,2700.1,0.56133004]
[1739515646294,3.96797,2700.6,2700.1,0.56133004]
[1739515646429,7.67095,2700.6,2700.1,0.56133004]
[1739515646630,3.70308,2700.5,2700.1,0.56133004]
[1739515646832,3.70318,2700.4,2700.1,0.56133004]
[1739515649369,7.40645,2700.4,2700.1,0.56133004]
[1739515649672,3.70318,2700.4,2700.1,0.09817731]
[1739515650074,7.40641,2700.4,2700.1,0.09817731]
[1739515650775,3.70339,2700.3,2700.1,0.09817731]
[1739515650982,3.70342,2700.2,2700.1,0.09817731]
[1739515655720,3.70379,2700.0,2699.5,0.7787]
[1739515656608,7.40761,2700.0,2699.5,0.7787]
[1739515656798,3.70389,2699.9,2699.5,0.7787]
[1739515657419,3.70379,2700.0,2699.5,0.7787]
[1739515657909,2.32294514,2700.2,2699.5,0.7787]
[1739515658109,3.70356,2700.1,2699.5,0.7787]
[1739515658315,6.79070965,2700.2,2699.5,4.483]
[1739515658469,4.48347,2700.2,2699.5,4.483]
[1739515658673,4.48347,2700.2,2699.6,7.40837]
[1739515658979,4.48347,2700.2,2699.6,3.70417]
[1739515659180,0.78,2700.2,2699.7,3.70401]
[1739515660409,0.265,2700.3,2699.9,3.70374]
[1739515660577,5.32,2700.4,2699.9,3.70374]
[1739515660912,5.585,2700.4,2700.0,0.7524]
[1739515661074,6.960851,2700.4,2700.0,0.7524]
[1739515661483,2.33694514,2700.8,2700.0,0.7524]
[1739515661682,5.32,2700.9,2700.4,5.24600514]
[1739515661923,5.32,2700.9,2700.5,3.703]
[1739515662083,6.330533,2700.9,2700.3,4.46066]
[1739515662285,3.70263,2700.8,2700.3,0.7575]
[1739515662528,0.7563,2700.7,2700.3,0.7575]
[1739515662829,3.70296,2700.6,2700.1,0.8086]
[1739515664736,3.96796,2700.6,2700.1,4.51213]
[1739515665024,1.23548751,2700.6,2700.1,4.51213]
[1739515665190,0.265,2700.6,2700.3,3.70326]
[1739515665627,0.265,2700.6,2700.1,4.51206]
[1739515666216,5.585,2700.6,2700.1,4.51206]
[1739515666589,5.585,2700.6,2700.2,0.09810816]
[1739515666889,5.585,2700.6,2700.2,3.80146816]
[1739515667101,5.585,2700.6,2700.2,0.09810816]
[1739515667326,5.585,2700.6,2700.3,3.70324]
[1739515667826,5.585,2700.6,2700.4,0.09796414]
[1739515668028,5.32,2700.6,2700.4,0.09796414]
[1739515668529,9.02295,2700.6,2700.5,0.09787793]
[1739515668884,9.02295,2700.6,2700.1,4.51206]
[1739515669090,9.02295,2700.6,2700.2,0.09806835]
[1739515669421,9.0229,2700.6,2700.2,0.09806835]
[1739515671437,10.29545,2700.6,2700.2,0.09806835]
[1739515671731,0.8209,2700.5,2700.2,0.09806835]
[1739515673298,4.52401,2700.5,2700.2,0.09806835]
[1739515673499,4.52401,2700.5,2699.9,4.46024]
[1739515673700,4.52401,2700.5,2700.0,0.09803042]
[1739515674323,0.8209,2700.5,2700.0,3.80172042]
[1739515675133,0.8209,2700.5,2700.1,3.70347]
[1739515675502,0.8209,2700.5,2700.2,0.09790345]
[1739515676685,5.32,2700.6,2700.3,4.49388]
[1739515676989,5.32,2700.6,2700.4,0.09777649]
[1739515678094,6.1142,2700.8,2700.4,0.09777649]
[1739515678300,5.32,2700.8,2700.5,3.70301]
[1739515678652,5.32,2700.8,2700.6,0.09764956]
[1739515678853,0.265,2700.9,2700.6,0.09764956]
[1739515679597,0.265,2700.9,2700.4,3.70312]
[1739515679753,0.265,2700.9,2700.7,0.0975861]
[1739515679953,4.972101,2700.9,2700.4,3.70312]
[1739515680182,3.96751,2700.9,2700.8,0.09748284]
[1739515680393,0.265,2700.9,2700.5,3.70294]
[1739515680602,9.78084,2701.0,2700.6,4.51328]
[1739515680603,5.585,2701.0,2700.6,4.51328]
[1739515680811,5.585,2701.0,2700.6,4.61088976]
[1739515681963,0.7702,2700.9,2700.6,0.09760976]
[1739515682163,5.10825,2700.9,2700.6,0.09760976]
[1739515682363,8.81082,2700.9,2700.4,3.70314]
[1739515682667,8.1753,2700.9,2700.4,3.70314]
[1739515682867,8.1753,2700.9,2700.5,0.09767322]
[1739515683099,3.70282,2700.7,2700.5,0.09767322]
[1739515683303,0.7765,2700.6,2700.3,3.70321]
[1739515683505,0.7765,2700.6,2700.4,0.09773669]
[1739515683806,0.7765,2700.6,2700.2,3.70341]
[1739515683963,4.47938,2700.6,2700.5,0.09767322]
[1739515684165,4.927318,2700.6,2700.1,4.47436]
[1739515684411,4.927318,2700.6,2700.5,0.09745147]
[1739515684569,0.8066,2700.2,2699.7,3.74030544]
[1739515684764,3.70364,2700.1,2699.7,3.74030544]
[1739515685896,0.8066,2699.8,2699.7,3.74030544]
[1739515686206,4.51057,2699.8,2699.7,3.74030544]
[1739515686419,6.05351514,2699.8,2699.7,3.74030544]
[1739515686571,2.34954514,2699.8,2699.7,3.74030544]
[1739515686774,0.8066,2699.8,2699.7,3.74030544]
[1739515686999,0.7875,2700.0,2699.7,3.74030544]
[1739515688237,3.70392,2699.9,2699.7,3.74030544]
[1739515688734,3.70397,2699.8,2699.7,3.74030544]
[1739515690621,9.02392,2699.9,2699.7,3.74030544]
[1739515691083,5.32,2699.9,2699.7,3.74030544]
[1739515691291,5.585,2699.9,2699.7,3.74030544]
[1739515692529,5.32,2699.9,2699.7,3.74030544]
[1739515692685,5.32,2699.9,2699.8,3.70397]
[1739515692886,4.48848,2700.3,2699.8,3.70397]
[1739515693100,4.48848,2700.3,2699.7,8.21239544]
[1739515693101,0.265,2700.2,2699.7,8.21239544]
[1739515693433,3.70358,2700.1,2699.7,4.50840544]
[1739515693720,7.40725,2700.1,2699.7,4.50840544]
[1739515693919,0.265,2700.2,2699.7,4.50840544]
[1739515694129,3.70385,2699.9,2699.7,3.74030544]
[1739515695126,4.4446,2699.9,2699.7,3.74030544]
[1739515695351,4.49937,2699.8,2699.7,3.74030544]
[1739515696557,4.49937,2699.8,2699.7,3.83911211]
[1739515697136,5.04937,2699.8,2699.7,3.83911211]
[1739515699848,5.04937,2699.8,2699.7,3.74030544]
[1739515700038,5.924691,2699.8,2699.7,3.74030544]
[1739515700243,6.189691,2699.8,2699.7,3.83918606]
[1739515701951,6.189691,2699.8,2699.7,3.74030544]
[1739515702346,6.189691,2699.8,2699.7,3.83921451]
[1739515703221,6.189691,2699.8,2699.7,3.74030544]
[1739515703421,6.189691,2699.8,2699.7,3.83921451]
[1739515706869,6.189691,2699.8,2699.7,3.74030544]
[1739515707230,6.189691,2699.8,2699.7,3.83921451]
[1739515707876,20.693491,2699.8,2699.7,3.83921451]
[1739515708079,20.693491,2699.8,2699.7,3.71149543]
[1739515708289,20.693491,2699.8,2699.7,3.61258636]
[1739515710263,20.693491,2699.8,2699.7,1.76052636]
[1739515710467,20.693491,2699.8,2699.7,6.36e-06]
[1739515710870,3.70538,2698.8,2698.5,0.7715]
[1739515711257,3.70538,2698.8,2698.6,0.09649297]
[1739515713180,3.70548,2698.7,2698.6,0.09649297]
[1739515713343,3.70538,2698.8,2698.6,0.09649297]
[1739515718677,3.70548,2698.7,2698.6,0.09649297]
[1739515719805,7.41083,2698.8,2698.6,0.09649297]
[1739515720299,3.70548,2698.7,2698.6,0.09649297]
[1739515720599,7.41084,2698.8,2698.6,0.09649297]
[1739515720805,3.70538,2698.8,2698.6,0.09649297]
[1739515721380,7.41082,2698.8,2698.6,0.09649297]
[1739515722069,3.70548,2698.7,2698.6,0.09649297]
[1739515723405,5.074776,2698.7,2698.6,0.09649297]
[1739515723708,3.70603,2698.4,2698.1,1.7039]
[1739515724080,3.70603,2698.4,2698.2,0.09398098]
[1739515724278,3.7058,2698.5,2698.2,0.09398098]
[1739515724484,7.41166,2698.5,2698.2,0.09398098]
[1739515724907,3.7058,2698.5,2698.2,0.09398098]
[1739515725325,3.70563,2698.6,2698.2,0.09398098]
[1739515726108,5.07339,2698.7,2698.2,0.09398098]
[1739515726409,3.70576,2698.5,2698.2,0.09398098]
[1739515727512,3.70563,2698.6,2698.2,3.80015098]
[1739515728409,4.25559,2698.7,2698.2,3.80015098]
[1739515728577,3.70559,2698.7,2698.3,0.8206]
[1739515728777,3.97059,2698.7,2698.4,0.09385384]
[1739515730289,0.265,2698.7,2698.4,0.09385384]
[1739515730489,3.97057,2698.7,2698.4,0.09385384]
[1739515731107,3.70557,2698.7,2698.4,0.09385384]
[1739515733378,3.70565,2698.6,2698.4,0.09385384]
[1739515733897,3.70576,2698.5,2698.4,0.09385384]
[1739515735812,3.70592,2698.4,2698.1,1.7379]
[1739515736314,3.706,2698.4,2698.1,1.7379]
[1739515736810,3.70577,2698.5,2698.1,1.7379]
[1739515737321,3.70577,2698.5,2698.1,5.44414]
[1739515737817,3.70577,2698.5,2698.1,1.7379]
[1739515738000,3.70591,2698.4,2698.1,1.7379]
[1739515738714,3.70572,2698.6,2698.1,1.7379]
[1739515738715,3.70581,2698.5,2698.1,1.7379]
[1739515739082,3.7059,2698.4,2698.1,1.7379]
[1739515740410,3.70617,2698.2,2698.1,1.7379]
[1739515740786,3.7061,2698.3,2698.1,1.7379]
[1739515741529,3.70571,2698.6,2698.1,1.7379]
[1739515741676,3.70571,2698.6,2698.2,0.09081743]
[1739515741877,3.70576,2698.5,2698.2,0.09081743]
[1739515742420,3.70571,2698.6,2698.2,0.09081743]
[1739515742583,7.41146,2698.6,2698.2,0.09081743]
[1739515742781,7.41145,2698.6,2698.2,0.09081743]
[1739515743696,3.70555,2698.7,2698.4,0.7961]
[1739515743891,3.97037,2698.8,2698.4,0.7961]
[1739515744129,3.97037,2698.8,2698.5,0.09062672]
[1739515744501,3.70553,2698.7,2698.5,0.09062672]
[1739515746033,3.70562,2698.6,2698.5,0.09062672]
[1739515747632,3.70562,2698.6,2698.2,0.8182]
[1739515747838,3.70562,2698.6,2698.5,0.09062672]
[1739515748015,3.70562,2698.6,2698.2,4.52434]
[1739515748337,3.70562,2698.6,2698.5,0.09062672]
[1739515748636,3.70562,2698.6,2698.5,0.09088747]
[1739515748836,3.70562,2698.6,2698.2,4.52434]
[1739515749000,2.76962,2698.6,2698.5,0.09088747]
[1739515749201,3.70551,2698.7,2698.2,4.52434]
[1739515749537,3.70569,2698.6,2698.5,0.09088747]
[1739515749911,3.70569,2698.6,2698.2,4.52434]
[1739515750538,3.70569,2698.6,2698.3,0.09101461]
[1739515750707,3.70551,2698.7,2698.3,0.09101461]
[1739515750924,7.41112,2698.7,2698.2,4.52434]
[1739515751212,3.70563,2698.6,2698.3,0.09101461]
[1739515751638,3.70563,2698.6,2698.2,5.347404]
[1739515751939,3.70563,2698.6,2698.4,0.09095104]
[1739515752125,3.70563,2698.6,2698.3,0.09101461]
[1739515752325,3.70563,2698.6,2698.5,0.09088747]
[1739515752641,3.70563,2698.6,2698.2,4.52434]
[1739515752799,3.70563,2698.6,2698.5,0.09088747]
[1739515753000,3.70563,2698.6,2698.2,4.52434]
[1739515753309,3.70563,2698.6,2698.3,0.09101461]
[1739515753514,3.70563,2698.6,2698.2,4.52434]
[1739515753732,3.70563,2698.6,2698.4,0.09095104]
[1739515753906,3.70563,2698.6,2698.3,0.09101461]
[1739515754240,3.70563,2698.6,2698.4,0.09095104]
[1739515754415,3.70563,2698.6,2698.2,4.52434]
[1739515754632,3.70563,2698.6,2698.5,0.09088747]
[1739515754957,3.70563,2698.6,2698.2,4.52434]